fUSD/lending_fUSD_20240104
["ID","MTS","AMOUNT","RATE_DAILY","PERIOD"]
[310142118,1704383449155,-23730.97,0.00032876,2]
[310142119,1704383449164,-500.0,0.00032876,2]
[310142120,1704383449174,-500.0,0.00032876,2]
[310142121,1704383449183,-500.0,0.00032876,2]
[310142122,1704383449192,-500.0,0.00032876,2]
[310142123,1704383449202,-9423.68,0.00032876,2]
[310142124,1704383449211,-10972.52,0.00032876,2]
[310142125,1704383449220,-553.51,0.00032876,2]
[310142126,1704383449233,-3799.42,0.00032876,2]
[310142127,1704383449242,-24318.36,0.00032876,2]
[310142128,1704383449252,-1932.66,0.00032876,2]
[310142129,1704383449262,-500.0,0.00032876,2]
[310142130,1704383449271,-500.0,0.00032876,2]
[310142131,1704383449281,-640.95,0.00032876,2]
[310142132,1704383449291,-3015.08,0.00032876,2]
[310142133,1704383449303,-500.0,0.00032876,2]
[310142134,1704383449313,-1267.01,0.00032876,2]
[310142135,1704383449323,-500.0,0.00032876,2]
[310142136,1704383449333,-1749.78,0.00032876,2]
[310142137,1704383449343,-500.0,0.00032876,2]
[310142138,1704383449353,-500.0,0.00032876,2]
[310142139,1704383449363,-513.45,0.00032876,2]
[310142140,1704383449373,-517.41,0.00032876,2]
[310142141,1704383449382,-588.4795307,0.00032876,2]
[310142142,1704383449391,-500.0,0.00032876,2]
[310142143,1704383449400,-1411.28,0.00032876,2]
[310142144,1704383449410,-1062.95,0.00032876,2]
[310142145,1704383449419,-500.0,0.00032876,2]
[310142146,1704383449428,-500.0,0.00032876,2]
[310142147,1704383449437,-500.0,0.00032876,2]
[310142148,1704383449446,-500.0,0.00032876,2]
[310142149,1704383449456,-500.0,0.00032876,2]
[310142150,1704383449465,-500.0,0.00032876,2]
[310142151,1704383449474,-2283.61,0.00032876,2]
[310142152,1704383449484,-500.0,0.00032876,2]
[310142153,1704383449493,-3700.77,0.00032876,2]
[310142154,1704383449503,-727.7,0.00032876,2]
[310142155,1704383449512,-5126.0,0.00032876,2]
[310142156,1704383449522,-1211.88,0.00032876,2]
[310142157,1704383449533,-500.0,0.00032876,2]
[310142158,1704383449543,-1230.09,0.00032876,2]
[310142159,1704383449553,-1468.8,0.00032876,2]
[310142160,1704383449563,-1555.26,0.00032876,2]
[310142161,1704383449572,-3590.95,0.00032876,2]
[310142162,1704383449582,-3092.57,0.00032876,2]
[310142163,1704383449593,-528.98327967,0.00032876,2]
[310142164,1704383449605,-500.0,0.00032876,2]
[310142165,1704383449615,-500.0,0.00032876,2]
[310142166,1704383449625,-4974.75,0.00032876,2]
[310142167,1704383449635,-500.0,0.00032876,2]
[310142168,1704383449644,-686.38,0.00032876,2]
[310142169,1704383449654,-2190.23,0.00032876,2]
[310142170,1704383449664,-2624.79,0.00032876,2]
[310142171,1704383449673,-500.0,0.00032876,2]
[310142172,1704383449683,-500.0,0.00032876,2]
[310142173,1704383449693,-3516.79,0.00032876,2]
[310142174,1704383449704,-500.0,0.00032876,2]
[310142175,1704383449714,-500.0,0.00032876,2]
[310142176,1704383449723,-6437.83,0.00032876,2]
[310142177,1704383449733,-948.35,0.00032876,2]
[310142178,1704383449742,-500.0,0.00032876,2]
[310142179,1704383449751,-541.5,0.00032876,2]
[310142180,1704383449760,-500.0,0.00032876,2]
[310142181,1704383449771,-4606.86,0.00032876,2]
[310142182,1704383449781,-1067.46,0.00032876,2]
[310142183,1704383449790,-706.69,0.00032876,2]
[310142184,1704383449800,-1535.74,0.00032876,2]
[310142185,1704383449810,-2597.4,0.00032876,2]
[310142186,1704383449820,-759.67,0.00032876,2]
[310142187,1704383449829,-500.0,0.00032876,2]
[310142188,1704383449838,-779.16,0.00032876,2]
[310142189,1704383449848,-431.09,0.00032877,15]
[310142190,1704383449859,-5732.84563439,0.000329,2]
[310142191,1704383449869,-1762.86296016,0.000329,2]
[310142192,1704383449879,-956.68874229,0.000329,2]
[310142193,1704383449900,-185.93,0.00032955,2]
[310142194,1704383449913,-391.75848966,0.00032999,2]
[310142195,1704383449923,-1182.31047488,0.00033,2]
[310142196,1704383449933,-571037.0,0.00033,2]
[310142197,1704383449943,-900.0,0.00033,2]
[310142198,1704383449952,-2499.99999906,0.00033,3]
[310142199,1704383449963,-155.41008496,0.00033031,7]
[310142200,1704383449973,-199.65307302,0.00033031,7]
[310142201,1704383449983,-169.12987576,0.00033031,7]
[310142202,1704383449994,-247.47662742,0.00033031,7]
[310142203,1704383450004,-594.8,0.00033038,2]
[310142204,1704383450014,-562.57613869,0.00033038,7]
[310142205,1704383450025,-242.66439296,0.00033045,7]
[310142206,1704383450035,-258.20906043,0.00033045,7]
[310142207,1704383450044,-1012.5069,0.00033048,2]
[310142208,1704383450054,-158.85132955,0.0003305,2]
[310142209,1704383450064,-500.0,0.00033087,2]
[310142210,1704383450074,-267.6,0.00033093,2]
[310142211,1704383450084,-154.56836738,0.00033128,5]
[310142212,1704383450094,-150.62022441,0.00033147,2]
[310142213,1704383450105,-150.62022441,0.00033147,2]
[310142214,1704383450114,-3216.37263121,0.00033148,3]
[310142215,1704383450124,-4391.28419639,0.00033149,4]
[310142216,1704383450134,-4541.31,0.00033149,2]
[310142217,1704383450144,-4541.31,0.00033149,2]
[310142218,1704383450154,-558612.22112468,0.00033149,3]
[310142219,1704383450164,-500.0,0.0003315,2]
[310142220,1704383450174,-500.0,0.0003315,2]
[310142221,1704383450184,-500.0,0.0003315,2]
[310142222,1704383450194,-500.0,0.0003315,2]
[310142223,1704383450204,-500.0,0.0003315,2]
[310142224,1704383450215,-500.0,0.0003315,2]
[310142225,1704383450225,-500.0,0.0003315,2]
[310142226,1704383450234,-500.0,0.0003315,2]
[310142227,1704383450244,-500.0,0.0003315,2]
[310142228,1704383450254,-500.0,0.0003315,2]
[310142229,1704383450264,-500.0,0.0003315,2]
[310142230,1704383450274,-500.0,0.0003315,2]
[310142231,1704383450284,-500.0,0.0003315,2]
[310142232,1704383450294,-500.0,0.0003315,2]
[310142233,1704383450304,-500.0,0.0003315,2]
[310142234,1704383450314,-1581.45,0.0003315,2]
[310142235,1704383450323,-592.65,0.0003315,2]
[310142236,1704383450333,-500.0,0.0003315,2]
[310142237,1704383450342,-500.0,0.0003315,2]
[310142238,1704383450354,-500.0,0.0003315,2]
[310142239,1704383450364,-500.0,0.0003315,2]
[310142240,1704383450373,-820.54,0.0003315,2]
[310142241,1704383450383,-236.45,0.0003315,2]
[310142242,1704383450392,-500.0,0.0003315,2]
[310142243,1704383450401,-500.0,0.0003315,2]
[310142244,1704383450411,-500.0,0.0003315,2]
[310142245,1704383450420,-500.0,0.0003315,2]
[310142246,1704383450429,-500.0,0.0003315,2]
[310142247,1704383450439,-553.43,0.0003315,2]
[310142248,1704383450448,-192.3,0.0003315,2]
[310142249,1704383450457,-1835.21,0.0003315,2]
[310142250,1704383450466,-500.0,0.0003315,2]
[310142251,1704383450477,-532.57,0.0003315,2]
[310142252,1704383450487,-500.0,0.0003315,2]
[310142253,1704383450497,-302.08,0.0003315,2]
[310142254,1704383450506,-558.15,0.0003315,2]
[310142255,1704383450517,-500.0,0.0003315,2]
[310142256,1704383450526,-500.0,0.0003315,2]
[310142257,1704383450536,-291.47,0.0003315,2]
[310142258,1704383450546,-916.08,0.0003315,2]
[310142259,1704383450556,-500.0,0.0003315,2]
[310142260,1704383450565,-500.0,0.0003315,2]
[310142261,1704383450575,-500.0,0.0003315,2]
[310142262,1704383450585,-500.0,0.0003315,2]
[310142263,1704383450595,-1068.71,0.0003315,2]
[310142264,1704383450606,-1645.35,0.0003315,2]
[310142265,1704383450614,-500.0,0.0003315,2]
[310142266,1704383450623,-500.0,0.0003315,2]
[310142267,1704383450633,-819.52,0.0003315,2]
[310142268,1704383450643,-1289.9,0.0003315,2]
[310142269,1704383450652,-500.0,0.0003315,2]
[310142270,1704383450929,-701.85,0.0003315,2]
[310142271,1704383450940,-592.8,0.0003315,2]
[310142272,1704383450950,-515.52,0.0003315,2]
[310142273,1704383450961,-1192.37,0.0003315,2]
[310142274,1704383450971,-500.0,0.0003315,2]
[310142275,1704383450981,-500.0,0.0003315,2]
[310142276,1704383450992,-500.0,0.0003315,2]
[310142277,1704383451002,-500.0,0.0003315,2]
[310142278,1704383451011,-1365.23,0.0003315,2]
[310142279,1704383451022,-500.0,0.0003315,2]
[310142280,1704383451032,-500.0,0.0003315,2]
[310142281,1704383451042,-500.0,0.0003315,2]
[310142282,1704383451052,-500.0,0.0003315,2]
[310142283,1704383451062,-500.0,0.0003315,2]
[310142284,1704383451071,-507.42,0.0003315,2]
[310142285,1704383451081,-599.75,0.0003315,2]
[310142286,1704383451091,-592.27,0.0003315,2]
[310142287,1704383451102,-500.0,0.0003315,2]
[310142288,1704383451112,-664.2,0.0003315,2]
[310142289,1704383451122,-500.0,0.0003315,2]
[310142290,1704383451131,-1043.25,0.0003315,2]
[310142291,1704383451141,-500.0,0.0003315,2]
[310142292,1704383451150,-618.99658648,0.0003315,2]
[310142293,1704383451160,-500.0,0.0003315,2]
[310142294,1704383451169,-626.37,0.0003315,2]
[310142295,1704383451179,-500.0,0.0003315,2]
[310142296,1704383451188,-500.0,0.0003315,2]
[310142297,1704383451198,-500.0,0.0003315,2]
[310142298,1704383451208,-500.0,0.0003315,2]
[310142299,1704383451217,-500.0,0.0003315,2]
[310142300,1704383451227,-917.78,0.0003315,2]
[310142301,1704383451237,-977.44,0.0003315,2]
[310142302,1704383451247,-309.81524955,0.0003315,2]
[310142303,1704383451257,-500.0,0.0003315,2]
[310142304,1704383451266,-500.0,0.0003315,2]
[310142305,1704383451275,-500.0,0.0003315,2]
[310142306,1704383451284,-535.3,0.0003315,2]
[310142307,1704383451294,-500.0,0.0003315,2]
[310142308,1704383451303,-500.0,0.0003315,2]
[310142309,1704383451313,-573.47,0.0003315,2]
[310142310,1704383451322,-500.0,0.0003315,2]
[310142311,1704383451331,-500.0,0.0003315,2]
[310142312,1704383451341,-679.66,0.0003315,2]
[310142313,1704383451350,-868.42,0.0003315,2]
[310142314,1704383451361,-500.0,0.0003315,2]
[310142315,1704383451370,-500.0,0.0003315,2]
[310142316,1704383451380,-500.0,0.0003315,2]
[310142317,1704383451389,-500.0,0.0003315,2]
[310142318,1704383451398,-500.0,0.0003315,2]
[310142319,1704383451407,-500.0,0.0003315,2]
[310142320,1704383451417,-500.0,0.0003315,2]
[310142321,1704383451426,-941.55,0.0003315,2]
[310142322,1704383451436,-500.0,0.0003315,2]
[310142323,1704383451445,-500.0,0.0003315,2]
[310142324,1704383451455,-500.0,0.0003315,2]
[310142325,1704383451465,-1452.62,0.0003315,2]
[310142326,1704383451477,-500.0,0.0003315,2]
[310142327,1704383451487,-540.38,0.0003315,2]
[310142328,1704383451496,-500.0,0.0003315,2]
[310142329,1704383451506,-500.0,0.0003315,2]
[310142330,1704383451515,-1669.57,0.0003315,2]
[310142331,1704383451525,-1419.74,0.0003315,2]
[310142332,1704383451534,-500.0,0.0003315,2]
[310142333,1704383451544,-500.0,0.0003315,2]
[310142334,1704383451553,-1040.63,0.0003315,2]
[310142335,1704383451563,-1057.35,0.0003315,2]
[310142336,1704383451573,-500.0,0.0003315,2]
[310142337,1704383451582,-1409.78,0.0003315,2]
[310142338,1704383451592,-786.88,0.0003315,2]
[310142339,1704383451603,-500.0,0.0003315,2]
[310142340,1704383451613,-500.0,0.0003315,2]
[310142341,1704383451622,-500.0,0.0003315,2]
[310142342,1704383451632,-1086.26,0.0003315,2]
[310142343,1704383451641,-500.0,0.0003315,2]
[310142344,1704383451651,-500.0,0.0003315,2]
[310142345,1704383451660,-500.0,0.0003315,2]
[310142346,1704383451669,-532.76,0.0003315,2]
[310142347,1704383451679,-432.31689403,0.0003315,2]
[310142348,1704383451688,-500.0,0.0003315,2]
[310142349,1704383451698,-500.0,0.0003315,2]
[310142350,1704383451707,-500.0,0.0003315,2]
[310142351,1704383451717,-728.75,0.0003315,2]
[310142352,1704383451726,-500.0,0.0003315,2]
[310142353,1704383451735,-500.0,0.0003315,2]
[310142354,1704383451745,-500.0,0.0003315,2]
[310142355,1704383451754,-500.0,0.0003315,2]
[310142356,1704383451764,-1028.01,0.0003315,2]
[310142357,1704383451773,-500.0,0.0003315,2]
[310142358,1704383451782,-803.51,0.0003315,2]
[310142359,1704383451792,-500.0,0.0003315,2]
[310142360,1704383451801,-500.0,0.0003315,2]
[310142361,1704383451811,-500.0,0.0003315,2]
[310142362,1704383451821,-500.0,0.0003315,2]
[310142363,1704383451831,-500.0,0.0003315,2]
[310142364,1704383451840,-1123.92,0.0003315,2]
[310142365,1704383451849,-517.51,0.0003315,2]
[310142366,1704383451859,-500.0,0.0003315,2]
[310142367,1704383451869,-500.0,0.0003315,2]
[310142368,1704383451879,-500.0,0.0003315,2]
[310142369,1704383451888,-205.46711471,0.0003315,2]
[310142370,1704383451898,-500.0,0.0003315,2]
[310142371,1704383451907,-720.98,0.0003315,2]
[310142372,1704383451917,-500.0,0.0003315,2]
[310142373,1704383451926,-1451.87,0.0003315,2]
[310142374,1704383451936,-500.0,0.0003315,2]
[310142375,1704383451945,-500.0,0.0003315,2]
[310142376,1704383451955,-500.0,0.0003315,2]
[310142377,1704383451965,-678.82,0.0003315,2]
[310142378,1704383451975,-759.68,0.0003315,2]
[310142379,1704383451984,-500.0,0.0003315,2]
[310142380,1704383451994,-3071.54,0.0003315,2]
[310142381,1704383452004,-615.97,0.0003315,2]
[310142382,1704383452013,-1363.51,0.0003315,2]
[310142383,1704383452024,-500.0,0.0003315,2]
[310142384,1704383452034,-566.19,0.0003315,2]
[310142385,1704383452044,-500.0,0.0003315,2]
[310142386,1704383452054,-870.68,0.0003315,2]
[310142387,1704383452063,-500.0,0.0003315,2]
[310142388,1704383452074,-500.0,0.0003315,2]
[310142389,1704383452083,-500.0,0.0003315,2]
[310142390,1704383452093,-500.0,0.0003315,2]
[310142391,1704383452103,-500.0,0.0003315,2]
[310142392,1704383452114,-535.58,0.0003315,2]
[310142393,1704383452124,-902.65,0.0003315,2]
[310142394,1704383452134,-900.66,0.0003315,2]
[310142395,1704383452146,-1457.23,0.0003315,2]
[310142396,1704383452156,-500.0,0.0003315,2]
[310142397,1704383452165,-1222.61,0.0003315,2]
[310142398,1704383452175,-386.02703882,0.0003315,2]
[310142399,1704383452184,-573.57,0.0003315,2]
[310142400,1704383452194,-1042.2,0.0003315,2]
[310142401,1704383452203,-500.0,0.0003315,2]
[310142402,1704383452213,-500.0,0.0003315,2]
[310142403,1704383452223,-500.0,0.0003315,2]
[310142404,1704383452233,-500.0,0.0003315,2]
[310142405,1704383452242,-728.74,0.0003315,2]
[310142406,1704383452252,-627.53,0.0003315,2]
[310142407,1704383452262,-746.5,0.0003315,2]
[310142408,1704383452273,-847.61,0.0003315,2]
[310142409,1704383452283,-500.0,0.0003315,2]
[310142410,1704383452293,-1537.38,0.0003315,2]
[310142411,1704383452303,-1357.77,0.0003315,2]
[310142412,1704383452315,-317.00502507,0.0003315,2]
[310142413,1704383452324,-500.0,0.0003315,2]
[310142414,1704383452334,-1147.35,0.0003315,2]
[310142415,1704383452345,-500.0,0.0003315,2]
[310142416,1704383452356,-1349.09,0.0003315,2]
[310142417,1704383452367,-1079.84,0.0003315,2]
[310142418,1704383452376,-500.0,0.0003315,2]
[310142419,1704383452386,-500.0,0.0003315,2]
[310142420,1704383452395,-1513.63,0.0003315,2]
[310142421,1704383452404,-500.0,0.0003315,2]
[310142422,1704383452414,-500.0,0.0003315,2]
[310142423,1704383452423,-500.0,0.0003315,2]
[310142424,1704383452433,-500.0,0.0003315,2]
[310142425,1704383452443,-511.54,0.0003315,2]
[310142426,1704383452453,-1462.66,0.0003315,2]
[310142427,1704383452462,-500.0,0.0003315,2]
[310142428,1704383452472,-603.95,0.0003315,2]
[310142429,1704383452482,-1172.19,0.0003315,2]
[310142430,1704383452491,-1990.12,0.0003315,2]
[310142431,1704383452501,-1219.74,0.0003315,2]
[310142432,1704383452511,-500.0,0.0003315,2]
[310142433,1704383452520,-500.0,0.0003315,2]
[310142434,1704383452530,-500.0,0.0003315,2]
[310142435,1704383452540,-500.0,0.0003315,2]
[310142436,1704383452549,-1670.1,0.0003315,2]
[310142437,1704383452560,-500.0,0.0003315,2]
[310142438,1704383452569,-912.27,0.0003315,2]
[310142439,1704383452579,-500.0,0.0003315,2]
[310142440,1704383452589,-500.0,0.0003315,2]
[310142441,1704383452598,-500.0,0.0003315,2]
[310142442,1704383452609,-1474.82,0.0003315,2]
[310142443,1704383452619,-880.31,0.0003315,2]
[310142444,1704383452629,-500.0,0.0003315,2]
[310142445,1704383452638,-958.09,0.0003315,2]
[310142446,1704383452648,-1366.5,0.0003315,2]
[310142447,1704383452657,-500.0,0.0003315,2]
[310142448,1704383452667,-500.0,0.0003315,2]
[310142449,1704383452676,-500.0,0.0003315,2]
[310142450,1704383452685,-574.97,0.0003315,2]
[310142451,1704383452694,-937.71,0.0003315,2]
[310142452,1704383452704,-500.0,0.0003315,2]
[310142453,1704383452714,-633.81,0.0003315,2]
[310142454,1704383452723,-937.76,0.0003315,2]
[310142455,1704383452733,-702.39,0.0003315,2]
[310142456,1704383452742,-581.57876483,0.0003315,2]
[310142457,1704383452752,-500.0,0.0003315,2]
[310142458,1704383452761,-500.0,0.0003315,2]
[310142459,1704383452771,-865.04,0.0003315,2]
[310142460,1704383452780,-636.93,0.0003315,2]
[310142461,1704383452789,-501.00813908,0.0003315,2]
[310142462,1704383452799,-500.0,0.0003315,2]
[310142463,1704383452809,-819.06,0.0003315,2]
[310142464,1704383452818,-500.0,0.0003315,2]
[310142465,1704383452831,-500.0,0.0003315,2]
[310142466,1704383452840,-500.0,0.0003315,2]
[310142467,1704383452850,-500.0,0.0003315,2]
[310142468,1704383452861,-500.0,0.0003315,2]
[310142469,1704383452871,-1417.4,0.0003315,2]
[310142470,1704383452880,-500.0,0.0003315,2]
[310142471,1704383452889,-500.0,0.0003315,2]
[310142472,1704383452899,-542.64,0.0003315,2]
[310142473,1704383452909,-2014.53,0.0003315,2]
[310142474,1704383452919,-876.9,0.0003315,2]
[310142475,1704383452928,-500.0,0.0003315,2]
[310142476,1704383452938,-500.0,0.0003315,2]
[310142477,1704383452947,-500.0,0.0003315,2]
[310142478,1704383452956,-500.0,0.0003315,2]
[310142479,1704383452966,-500.0,0.0003315,2]
[310142480,1704383452975,-572.05,0.0003315,2]
[310142481,1704383452985,-1000.0,0.0003315,2]
[310142482,1704383452994,-500.0,0.0003315,2]
[310142483,1704383453005,-500.0,0.0003315,2]
[310142484,1704383453015,-500.0,0.0003315,2]
[310142485,1704383453025,-1205.37,0.0003315,2]
[310142486,1704383453035,-500.0,0.0003315,2]
[310142487,1704383453045,-500.0,0.0003315,2]
[310142488,1704383453054,-500.0,0.0003315,2]
[310142489,1704383453064,-500.0,0.0003315,2]
[310142490,1704383453074,-500.0,0.0003315,2]
[310142491,1704383453083,-500.0,0.0003315,2]
[310142492,1704383453093,-500.0,0.0003315,2]
[310142493,1704383453103,-500.0,0.0003315,2]
[310142494,1704383453112,-500.0,0.0003315,2]
[310142495,1704383453121,-674.61,0.0003315,2]
[310142496,1704383453131,-500.0,0.0003315,2]
[310142497,1704383453140,-500.0,0.0003315,2]
[310142498,1704383453150,-1957.4,0.0003315,2]
[310142499,1704383453159,-500.0,0.0003315,2]
[310142500,1704383453169,-500.0,0.0003315,2]
[310142501,1704383453179,-500.0,0.0003315,2]
[310142502,1704383453189,-695.0,0.0003315,2]
[310142503,1704383453199,-500.0,0.0003315,2]
[310142504,1704383453209,-500.0,0.0003315,2]
[310142505,1704383453219,-500.0,0.0003315,2]
[310142506,1704383453228,-500.0,0.0003315,2]
[310142507,1704383453237,-500.0,0.0003315,2]
[310142508,1704383453247,-500.0,0.0003315,2]
[310142509,1704383453257,-500.0,0.0003315,2]
[310142510,1704383453267,-803.55,0.0003315,2]
[310142511,1704383453277,-500.0,0.0003315,2]
[310142512,1704383453286,-500.0,0.0003315,2]
[310142513,1704383453296,-500.0,0.0003315,2]
[310142514,1704383453305,-500.0,0.0003315,2]
[310142515,1704383453315,-882.03,0.0003315,2]
[310142516,1704383453324,-815.47,0.0003315,2]
[310142517,1704383453336,-500.0,0.0003315,2]
[310142518,1704383453347,-500.0,0.0003315,2]
[310142519,1704383453358,-500.0,0.0003315,2]
[310142520,1704383453368,-500.0,0.0003315,2]
[310142521,1704383453378,-500.0,0.0003315,2]
[310142522,1704383453387,-1914.74,0.0003315,2]
[310142523,1704383453397,-500.0,0.0003315,2]
[310142524,1704383453406,-500.0,0.0003315,2]
[310142525,1704383453416,-500.0,0.0003315,2]
[310142526,1704383453426,-574.34,0.0003315,2]
[310142527,1704383453435,-500.0,0.0003315,2]
[310142528,1704383453445,-500.0,0.0003315,2]
[310142529,1704383453455,-500.0,0.0003315,2]
[310142530,1704383453464,-982.79,0.0003315,2]
[310142531,1704383453482,-944.72,0.0003315,2]
[310142532,1704383453494,-500.0,0.0003315,2]
[310142533,1704383453506,-500.0,0.0003315,2]
[310142534,1704383453516,-500.0,0.0003315,2]
[310142535,1704383453526,-301.78631424,0.0003315,2]
[310142536,1704383453536,-804.81,0.0003315,2]
[310142537,1704383453546,-500.0,0.0003315,2]
[310142538,1704383453557,-1565.08,0.0003315,2]
[310142539,1704383453567,-959.87,0.0003315,2]
[310142540,1704383453579,-500.0,0.0003315,2]
[310142541,1704383453589,-500.0,0.0003315,2]
[310142542,1704383453598,-500.0,0.0003315,2]
[310142543,1704383453838,-500.0,0.0003315,2]
[310142544,1704383453848,-261.61069009,0.0003315,2]
[310142545,1704383453857,-744.98,0.0003315,2]
[310142546,1704383453866,-700.63,0.0003315,2]
[310142547,1704383453875,-500.0,0.0003315,2]
[310142548,1704383453885,-500.0,0.0003315,2]
[310142549,1704383453894,-885.49,0.0003315,2]
[310142550,1704383453904,-577.62016952,0.0003315,2]
[310142551,1704383453913,-500.0,0.0003315,2]
[310142552,1704383453923,-500.0,0.0003315,2]
[310142553,1704383453932,-1410.46,0.0003315,2]
[310142554,1704383453942,-500.0,0.0003315,2]
[310142555,1704383453951,-500.0,0.0003315,2]
[310142556,1704383453961,-500.0,0.0003315,2]
[310142557,1704383453970,-500.0,0.0003315,2]
[310142558,1704383453979,-500.0,0.0003315,2]
[310142559,1704383453988,-957.51,0.0003315,2]
[310142560,1704383453997,-500.0,0.0003315,2]
[310142561,1704383454007,-500.0,0.0003315,2]
[310142562,1704383454017,-500.0,0.0003315,2]
[310142563,1704383454027,-699.39,0.0003315,2]
[310142564,1704383454037,-500.0,0.0003315,2]
[310142565,1704383454047,-500.0,0.0003315,2]
[310142566,1704383454056,-1991.4,0.0003315,2]
[310142567,1704383454065,-500.0,0.0003315,2]
[310142568,1704383454075,-500.0,0.0003315,2]
[310142569,1704383454085,-593.40388408,0.0003315,2]
[310142570,1704383454095,-500.0,0.0003315,2]
[310142571,1704383454105,-500.0,0.0003315,2]
[310142572,1704383454114,-500.0,0.0003315,2]
[310142573,1704383454123,-500.0,0.0003315,2]
[310142574,1704383454133,-550.08512953,0.0003315,2]
[310142575,1704383454142,-500.0,0.0003315,2]
[310142576,1704383454151,-500.0,0.0003315,2]
[310142577,1704383454161,-500.0,0.0003315,2]
[310142578,1704383454171,-2780.73,0.0003315,2]
[310142579,1704383454180,-500.0,0.0003315,2]
[310142580,1704383454189,-564.47,0.0003315,2]
[310142581,1704383454199,-500.0,0.0003315,2]
[310142582,1704383454208,-1394.86,0.0003315,2]
[310142583,1704383454218,-1775.83,0.0003315,2]
[310142584,1704383454227,-500.0,0.0003315,2]
[310142585,1704383454236,-500.0,0.0003315,2]
[310142586,1704383454246,-500.0,0.0003315,2]
[310142587,1704383454255,-500.0,0.0003315,2]
[310142588,1704383454265,-652.78,0.0003315,2]
[310142589,1704383454274,-500.0,0.0003315,2]
[310142590,1704383454284,-500.0,0.0003315,2]
[310142591,1704383454293,-619.2,0.0003315,2]
[310142592,1704383454302,-1405.72,0.0003315,2]
[310142593,1704383454312,-500.0,0.0003315,2]
[310142594,1704383454321,-241.5611734,0.0003315,2]
[310142595,1704383454329,-500.0,0.0003315,2]
[310142596,1704383454338,-597.63,0.0003315,2]
[310142597,1704383454347,-1124.88,0.0003315,2]
[310142598,1704383454357,-1115.87,0.0003315,2]
[310142599,1704383454367,-500.0,0.0003315,2]
[310142600,1704383454376,-500.0,0.0003315,2]
[310142601,1704383454385,-500.0,0.0003315,2]
[310142602,1704383454395,-500.0,0.0003315,2]
[310142603,1704383454404,-1054.91,0.0003315,2]
[310142604,1704383454413,-524.05,0.0003315,2]
[310142605,1704383454422,-500.0,0.0003315,2]
[310142606,1704383454431,-559.91,0.0003315,2]
[310142607,1704383454441,-577.09914741,0.0003315,2]
[310142608,1704383454450,-500.0,0.0003315,2]
[310142609,1704383454459,-500.0,0.0003315,2]
[310142610,1704383454469,-564.33,0.0003315,2]
[310142611,1704383454478,-500.0,0.0003315,2]
[310142612,1704383454487,-685.63,0.0003315,2]
[310142613,1704383454496,-1086.48,0.0003315,2]
[310142614,1704383454506,-950.11,0.0003315,2]
[310142615,1704383454515,-500.0,0.0003315,2]
[310142616,1704383454525,-500.05050078,0.0003315,2]
[310142617,1704383454534,-500.0,0.0003315,2]